[Event "*** Titled Tuesday Blitz"]
[Site "Chess.com"]
[Date "2020.04.14"]
[Round "1"]
[White "RovenVogel"]
[Black "FeketeBarika"]
[Result "0-1"]
[WhiteElo "2621"]
[BlackElo "2311"]
[TimeControl "180+1"]
[EndTime "10:08:34 PDT"]
[Termination "FeketeBarika won by resignation"]

1. d4 {[%clk 0:02:20]} 1... e6 {[%clk 0:02:59.5]} 2. c4 {[%clk 0:02:17.6]} 2...
Nf6 {[%clk 0:02:54.3]} 3. Nf3 {[%clk 0:02:16.8]} 3... d5 {[%clk 0:02:55.2]} 4.
Nc3 {[%clk 0:02:15.4]} 4... Be7 {[%clk 0:02:54.3]} 5. Bf4 {[%clk 0:02:14]} 5...
O-O {[%clk 0:02:52.9]} 6. e3 {[%clk 0:02:13.6]} 6... Nbd7 {[%clk 0:02:53.1]} 7.
c5 {[%clk 0:02:08.3]} 7... c6 {[%clk 0:02:52.6]} 8. h3 {[%clk 0:02:04.6]} 8...
Re8 {[%clk 0:02:52.2]} 9. Be2 {[%clk 0:02:01.2]} 9... Nf8 {[%clk 0:02:51.3]} 10.
O-O {[%clk 0:02:00.7]} 10... Ng6 {[%clk 0:02:50.6]} 11. Bh2 {[%clk 0:02:00.7]}
11... Bf8 {[%clk 0:02:47.2]} 12. b4 {[%clk 0:01:59.2]} 12... Nd7 {[%clk
0:02:46.8]} 13. Bd3 {[%clk 0:01:57.2]} 13... Nh4 {[%clk 0:02:41.5]} 14. Nxh4
{[%clk 0:01:50.5]} 14... Qxh4 {[%clk 0:02:42.4]} 15. f4 {[%clk 0:01:45.3]} 15...
g6 {[%clk 0:02:23.8]} 16. b5 {[%clk 0:01:41.3]} 16... Bg7 {[%clk 0:02:16.4]} 17.
bxc6 {[%clk 0:01:41.1]} 17... bxc6 {[%clk 0:02:16.7]} 18. Qa4 {[%clk 0:01:16.6]}
18... Bb7 {[%clk 0:02:10.7]} 19. Qa5 {[%clk 0:01:10.3]} 19... Qd8 {[%clk
0:02:05.5]} 20. Qa3 {[%clk 0:01:06.1]} 20... a5 {[%clk 0:01:34.2]} 21. Rab1
{[%clk 0:01:05.8]} 21... Ba6 {[%clk 0:01:33.3]} 22. Bxa6 {[%clk 0:01:05.6]}
22... Rxa6 {[%clk 0:01:34.1]} 23. Rb7 {[%clk 0:01:05.8]} 23... Ra8 {[%clk
0:00:40.9]} 24. Qa4 {[%clk 0:01:03.8]} 24... Qc8 {[%clk 0:00:34]} 25. Rb3 {[%clk
0:01:00.9]} 25... Qa6 {[%clk 0:00:31.6]} 26. Rd1 {[%clk 0:00:46.5]} 26... Rab8
{[%clk 0:00:28.8]} 27. Bg3 {[%clk 0:00:44]} 27... Rxb3 {[%clk 0:00:27.3]} 28.
axb3 {[%clk 0:00:43.6]} 28... Nxc5 {[%clk 0:00:25.1]} 29. Qa3 {[%clk 0:00:38.7]}
29... Nd7 {[%clk 0:00:19.4]} 30. b4 {[%clk 0:00:38.5]} 30... Ra8 {[%clk
0:00:17.2]} 31. Ra1 {[%clk 0:00:37.4]} 31... Nb6 {[%clk 0:00:15.7]} 32. bxa5
{[%clk 0:00:35]} 32... Nc4 {[%clk 0:00:15.5]} 33. Qc1 {[%clk 0:00:28.8]} 33...
c5 {[%clk 0:00:14.9]} 34. dxc5 {[%clk 0:00:27.1]} 34... Qc6 {[%clk 0:00:14.8]}
35. Bf2 {[%clk 0:00:24.1]} 35... Qxc5 {[%clk 0:00:13.4]} 36. a6 {[%clk 0:00:24]}
36... Qc6 {[%clk 0:00:12]} 37. a7 {[%clk 0:00:22.4]} 37... Nb6 {[%clk
0:00:12.1]} 38. Ra6 {[%clk 0:00:19.2]} 38... Bxc3 {[%clk 0:00:11.2]} 39. Ra3
{[%clk 0:00:16.6]} 39... d4 {[%clk 0:00:08.6]} 40. exd4 {[%clk 0:00:15.8]} 40...
Nd5 {[%clk 0:00:08.7]} 41. Kh2 {[%clk 0:00:10.5]} 41... Qc7 {[%clk 0:00:08.3]}
42. g3 {[%clk 0:00:07.1]} 42... Rxa7 {[%clk 0:00:08.2]} 43. Rxa7 {[%clk
0:00:07]} 43... Qxa7 {[%clk 0:00:09.1]} 44. Qc2 {[%clk 0:00:07.9]} 44... Qa6
{[%clk 0:00:08.7]} 45. Kg2 {[%clk 0:00:06.5]} 45... Qc4 {[%clk 0:00:08.6]} 46.
Kf3 {[%clk 0:00:06.3]} 46... Qb4 {[%clk 0:00:08.8]} 47. Qe4 {[%clk 0:00:06.2]}
47... Qb3 {[%clk 0:00:07.8]} 48. Kg2 {[%clk 0:00:06]} 48... Qb2 {[%clk
0:00:07.5]} 49. h4 {[%clk 0:00:05.8]} 49... h5 {[%clk 0:00:07.2]} 50. Qe5 {[%clk
0:00:04.9]} 50... Qd2 {[%clk 0:00:07]} 51. Qe4 {[%clk 0:00:04]} 51... Kg7 {[%clk
0:00:07.1]} 52. Qe5+ {[%clk 0:00:03.4]} 52... Kh7 {[%clk 0:00:07.4]} 53. Qe4
{[%clk 0:00:03.1]} 53... Nf6 {[%clk 0:00:07.4]} 54. Qe5 {[%clk 0:00:03.1]} 54...
Ng4 {[%clk 0:00:07.6]} 0-1

[Event "*** Titled Tuesday Blitz"]
[Site "Chess.com"]
[Date "2020.04.14"]
[Round "1"]
[White "Sviridov_Valery"]
[Black "SlavenPastar"]
[Result "1-0"]
[WhiteElo "2812"]
[BlackElo "2427"]
[TimeControl "180+1"]
[EndTime "10:08:37 PDT"]
[Termination "Sviridov_Valery won on time"]

1. Nf3 {[%clk 0:02:58.8]} 1... b6 {[%clk 0:02:59.4]} 2. g3 {[%clk 0:02:58.7]}
2... Bb7 {[%clk 0:02:59.1]} 3. Bg2 {[%clk 0:02:59.3]} 3... e6 {[%clk 0:02:58.9]}
4. O-O {[%clk 0:02:59.1]} 4... Nf6 {[%clk 0:02:59.1]} 5. c4 {[%clk 0:02:59.2]}
5... Be7 {[%clk 0:02:59.4]} 6. d4 {[%clk 0:02:58.5]} 6... O-O {[%clk 0:02:59.5]}
7. d5 {[%clk 0:02:58.5]} 7... Re8 {[%clk 0:02:55.8]} 8. Nc3 {[%clk 0:02:57.3]}
8... a5 {[%clk 0:02:50.7]} 9. Nd4 {[%clk 0:02:56.5]} 9... Na6 {[%clk 0:02:48.4]}
10. d6 {[%clk 0:02:55.8]} 10... Bxg2 {[%clk 0:02:25.4]} 11. dxe7 {[%clk
0:02:55.6]} 11... Qxe7 {[%clk 0:02:24.8]} 12. Kxg2 {[%clk 0:02:55.9]} 12... Nc5
{[%clk 0:02:24.3]} 13. e4 {[%clk 0:02:53.8]} 13... Ncxe4 {[%clk 0:02:20.3]} 14.
Nxe4 {[%clk 0:02:52]} 14... Nxe4 {[%clk 0:02:21.2]} 15. Re1 {[%clk 0:02:52.2]}
15... Nc5 {[%clk 0:02:16.3]} 16. b3 {[%clk 0:02:49.1]} 16... d6 {[%clk
0:02:15.7]} 17. Qf3 {[%clk 0:02:47.3]} 17... Qf6 {[%clk 0:02:07.1]} 18. Bb2
{[%clk 0:02:44]} 18... e5 {[%clk 0:02:03.4]} 19. Qxf6 {[%clk 0:02:41.8]} 19...
gxf6 {[%clk 0:02:03.1]} 20. Nf5 {[%clk 0:02:41.4]} 20... a4 {[%clk 0:01:53.3]}
21. Ba3 {[%clk 0:02:30.3]} 21... Ne6 {[%clk 0:01:38.8]} 22. b4 {[%clk
0:02:26.8]} 22... h5 {[%clk 0:01:35.8]} 23. h4 {[%clk 0:02:25.8]} 23... Kh7
{[%clk 0:01:33.7]} 24. Ne3 {[%clk 0:02:25.1]} 24... Kg6 {[%clk 0:01:30.7]} 25.
Nd5 {[%clk 0:02:24.9]} 25... Ra7 {[%clk 0:01:24.5]} 26. Rad1 {[%clk 0:02:24.6]}
26... f5 {[%clk 0:01:15.1]} 27. Bc1 {[%clk 0:02:22.9]} 27... Rb8 {[%clk
0:01:06.3]} 28. Ne7+ {[%clk 0:02:18.8]} 28... Kf6 {[%clk 0:01:00]} 29. Nc6
{[%clk 0:02:19.7]} 29... Rba8 {[%clk 0:00:59.6]} 30. Nxa7 {[%clk 0:02:18.2]}
30... Rxa7 {[%clk 0:01:00.5]} 31. f4 {[%clk 0:02:18.9]} 31... e4 {[%clk
0:00:59.6]} 32. Bb2+ {[%clk 0:02:15.3]} 32... Ke7 {[%clk 0:00:59.8]} 33. a3
{[%clk 0:02:16.2]} 33... c5 {[%clk 0:00:54.5]} 34. b5 {[%clk 0:02:15.9]} 34...
Nc7 {[%clk 0:00:49.1]} 35. Rd2 {[%clk 0:02:15.4]} 35... Ra8 {[%clk 0:00:47.5]}
36. Red1 {[%clk 0:02:13.8]} 36... Rd8 {[%clk 0:00:47.5]} 37. Be5 {[%clk
0:02:09.7]} 37... Ne8 {[%clk 0:00:45.7]} 38. Rd5 {[%clk 0:02:09.1]} 38... f6
{[%clk 0:00:40.5]} 39. Bb2 {[%clk 0:02:02.4]} 39... Ke6 {[%clk 0:00:39.8]} 40.
R5d2 {[%clk 0:02:00.7]} 40... Rd7 {[%clk 0:00:37.5]} 41. Kf2 {[%clk 0:01:58.8]}
41... Rd8 {[%clk 0:00:34.7]} 42. Ke3 {[%clk 0:01:53.8]} 42... Rd7 {[%clk
0:00:34.9]} 43. Rh1 {[%clk 0:01:51.1]} 43... Rg7 {[%clk 0:00:31.8]} 44. Rg1
{[%clk 0:01:50.8]} 44... Rg4 {[%clk 0:00:31.9]} 45. Kf2 {[%clk 0:01:49.1]} 45...
Ke7 {[%clk 0:00:31.1]} 46. Bc3 {[%clk 0:01:21.4]} 46... Ke6 {[%clk 0:00:29.3]}
47. Rdd1 {[%clk 0:01:21.3]} 47... Rg7 {[%clk 0:00:25.1]} 48. Bd2 {[%clk
0:01:21.5]} 48... Rg8 {[%clk 0:00:23.1]} 49. Be3 {[%clk 0:01:21.1]} 49... Rg7
{[%clk 0:00:21.9]} 50. g4 {[%clk 0:01:14.4]} 50... fxg4 {[%clk 0:00:20.6]} 51.
f5+ {[%clk 0:01:14.5]} 51... Kxf5 {[%clk 0:00:19.3]} 52. Rd5+ {[%clk 0:01:14.9]}
52... Kg6 {[%clk 0:00:16.6]} 53. Bf4 {[%clk 0:01:14.9]} 53... Rd7 {[%clk
0:00:14.2]} 54. Rgd1 {[%clk 0:01:10.6]} 54... Kf7 {[%clk 0:00:11]} 55. Bxd6
{[%clk 0:01:10.2]} 55... Ke6 {[%clk 0:00:08.7]} 56. Bf4 {[%clk 0:01:09.7]} 56...
Rh7 {[%clk 0:00:08]} 57. Kg3 {[%clk 0:01:07.3]} 57... Ng7 {[%clk 0:00:06.8]} 58.
Rd6+ {[%clk 0:01:06.3]} 58... Kf7 {[%clk 0:00:06.9]} 59. Rd7+ {[%clk 0:01:06.6]}
59... Kg6 {[%clk 0:00:06.4]} 60. Kf2 {[%clk 0:01:01.6]} 60... Rh8 {[%clk
0:00:06.7]} 61. R1d6 {[%clk 0:00:57.4]} 61... Nf5 {[%clk 0:00:06.9]} 62. Rxb6
{[%clk 0:00:57.7]} 62... Nxh4 {[%clk 0:00:04.9]} 63. Rdd6 {[%clk 0:00:56.1]}
63... Rf8 {[%clk 0:00:05.3]} 64. Be5 {[%clk 0:00:54.4]} 64... e3+ {[%clk
0:00:05.6]} 65. Kxe3 {[%clk 0:00:53.4]} 65... Nf5+ {[%clk 0:00:05.5]} 66. Kf4
{[%clk 0:00:51.7]} 66... Nxd6 {[%clk 0:00:06.4]} 67. Bxd6 {[%clk 0:00:51.1]}
67... Re8 {[%clk 0:00:05.4]} 68. Bxc5 {[%clk 0:00:50.2]} 68... Re1 {[%clk
0:00:05.9]} 69. Bd4 {[%clk 0:00:50.1]} 69... Rf1+ {[%clk 0:00:06]} 70. Kg3
{[%clk 0:00:50]} 70... Rf3+ {[%clk 0:00:06.3]} 71. Kg2 {[%clk 0:00:50.4]} 71...
h4 {[%clk 0:00:06.5]} 72. Rxf6+ {[%clk 0:00:38.8]} 72... Rxf6 {[%clk 0:00:06.4]}
73. Bxf6 {[%clk 0:00:39.7]} 73... Kxf6 {[%clk 0:00:07.3]} 74. b6 {[%clk
0:00:40.1]} 74... Ke5 {[%clk 0:00:05.8]} 75. b7 {[%clk 0:00:40.3]} 1-0

[Event "*** Titled Tuesday Blitz"]
[Site "Chess.com"]
[Date "2020.04.14"]
[Round "1"]
[White "pooh2012"]
[Black "Treacherous_horse64"]
[Result "1-0"]
[WhiteElo "2580"]
[BlackElo "2200"]
[TimeControl "180+1"]
[EndTime "10:08:40 PDT"]
[Termination "pooh2012 won by resignation"]

1. Nf3 {[%clk 0:03:00.9]} 1... Nf6 {[%clk 0:02:59.2]} 2. g3 {[%clk 0:03:00.7]}
2... d5 {[%clk 0:02:58]} 3. Bg2 {[%clk 0:03:00.5]} 3... h6 {[%clk 0:02:53.4]} 4.
O-O {[%clk 0:02:59]} 4... Bf5 {[%clk 0:02:51.9]} 5. d3 {[%clk 0:02:59.4]} 5...
e6 {[%clk 0:02:50.5]} 6. c4 {[%clk 0:02:54.7]} 6... c6 {[%clk 0:02:45.8]} 7.
cxd5 {[%clk 0:02:54.3]} 7... exd5 {[%clk 0:02:45.7]} 8. Nc3 {[%clk 0:02:54.9]}
8... Be7 {[%clk 0:02:44.5]} 9. Qb3 {[%clk 0:02:55]} 9... Qb6 {[%clk 0:02:44.2]}
10. Qc2 {[%clk 0:02:55.3]} 10... O-O {[%clk 0:02:43.5]} 11. e4 {[%clk 0:02:55]}
11... dxe4 {[%clk 0:02:39.2]} 12. dxe4 {[%clk 0:02:55.9]} 12... Bh7 {[%clk
0:02:34.6]} 13. Be3 {[%clk 0:02:55.8]} 13... Qa5 {[%clk 0:02:25.5]} 14. Rad1
{[%clk 0:02:32.3]} 14... Nbd7 {[%clk 0:02:22.6]} 15. Nd2 {[%clk 0:02:18.9]}
15... Rfe8 {[%clk 0:02:10.2]} 16. Rfe1 {[%clk 0:02:11.8]} 16... Rad8 {[%clk
0:02:07]} 17. Nc4 {[%clk 0:02:09.4]} 17... Qa6 {[%clk 0:02:06]} 18. Bf1 {[%clk
0:02:08.5]} 18... b5 {[%clk 0:02:01.1]} 19. Nd6 {[%clk 0:01:09.7]} 19... Bxd6
{[%clk 0:02:00.9]} 20. Rxd6 {[%clk 0:01:10.6]} 20... Ne5 {[%clk 0:01:55.8]} 21.
Rxd8 {[%clk 0:00:57.6]} 21... Rxd8 {[%clk 0:01:48.8]} 22. Rd1 {[%clk 0:00:36.1]}
22... Rxd1 {[%clk 0:01:30.3]} 23. Qxd1 {[%clk 0:00:37]} 23... Bg6 {[%clk
0:01:06]} 24. Bd4 {[%clk 0:00:21.2]} 24... Bh5 {[%clk 0:00:57.9]} 25. Be2 {[%clk
0:00:21.3]} 25... Bxe2 {[%clk 0:00:57.4]} 26. Qxe2 {[%clk 0:00:22.2]} 26... Ned7
{[%clk 0:00:51.8]} 27. e5 {[%clk 0:00:22.3]} 27... Ne8 {[%clk 0:00:51.8]} 28. e6
{[%clk 0:00:22]} 28... Nf8 {[%clk 0:00:29.2]} 29. exf7+ {[%clk 0:00:16.5]} 29...
Kxf7 {[%clk 0:00:28.5]} 30. Qh5+ {[%clk 0:00:16.7]} 30... g6 {[%clk 0:00:20.2]}
31. Qxh6 {[%clk 0:00:12.4]} 31... b4 {[%clk 0:00:20.3]} 32. Qf4+ {[%clk
0:00:12.5]} 32... Ke7 {[%clk 0:00:19.3]} 33. Qe5+ {[%clk 0:00:10.9]} 33... Ne6
{[%clk 0:00:18.8]} 34. Ne4 {[%clk 0:00:10.2]} 34... Qc4 {[%clk 0:00:10]} 35.
Bc5+ {[%clk 0:00:09.8]} 35... Kd7 {[%clk 0:00:09.1]} 36. Be3 {[%clk 0:00:06.2]}
36... Qd5 {[%clk 0:00:07.3]} 37. Nf6+ {[%clk 0:00:03.6]} 37... Nxf6 {[%clk
0:00:07.1]} 38. Qxf6 {[%clk 0:00:04.5]} 38... Qd1+ {[%clk 0:00:07.7]} 39. Kg2
{[%clk 0:00:04.8]} 39... Qd5+ {[%clk 0:00:08.6]} 40. Qf3 {[%clk 0:00:05]} 40...
Qd6 {[%clk 0:00:07.3]} 41. Bxa7 {[%clk 0:00:04.2]} 41... c5 {[%clk 0:00:06.8]}
42. Qb7+ {[%clk 0:00:04.5]} 42... Nc7 {[%clk 0:00:07.3]} 43. a3 {[%clk 0:00:05]}
43... bxa3 {[%clk 0:00:07.1]} 44. bxa3 {[%clk 0:00:05.9]} 44... c4 {[%clk
0:00:07.1]} 45. Be3 {[%clk 0:00:05.3]} 45... c3 {[%clk 0:00:06.1]} 46. a4 {[%clk
0:00:05.8]} 46... c2 {[%clk 0:00:04.7]} 47. a5 {[%clk 0:00:06.1]} 47... Qd5+
{[%clk 0:00:03.8]} 48. Qxd5+ {[%clk 0:00:06.4]} 48... Nxd5 {[%clk 0:00:04.7]}
49. Bc1 {[%clk 0:00:07.2]} 49... Nb4 {[%clk 0:00:04.7]} 50. Kf3 {[%clk 0:00:07]}
50... Nd3 {[%clk 0:00:04.7]} 51. Bd2 {[%clk 0:00:06.9]} 51... c1=Q {[%clk
0:00:05.6]} 52. Bxc1 {[%clk 0:00:07.3]} 52... Nxc1 {[%clk 0:00:06.5]} 53. Kg4
{[%clk 0:00:08.1]} 53... Nd3 {[%clk 0:00:06.5]} 54. f4 {[%clk 0:00:08.5]} 54...
Nf2+ {[%clk 0:00:06.4]} 55. Kg5 {[%clk 0:00:08.6]} 55... Nd1 {[%clk 0:00:02]}
56. Kxg6 {[%clk 0:00:08.9]} 56... Ne3 {[%clk 0:00:02.9]} 57. f5 {[%clk
0:00:09.2]} 57... Ng4 {[%clk 0:00:02.9]} 58. f6 {[%clk 0:00:09.6]} 58... Nxh2
{[%clk 0:00:02.7]} 59. f7 {[%clk 0:00:09.6]} 59... Ke7 {[%clk 0:00:03.6]} 60.
Kg7 {[%clk 0:00:09.6]} 1-0

[Event "*** Titled Tuesday Blitz"]
[Site "Chess.com"]
[Date "2020.04.14"]
[Round "1"]
[White "H3nriqueTV"]
[Black "Ba_clbaf_osed_ingo_3v21"]
[Result "1/2-1/2"]
[WhiteElo "2226"]
[BlackElo "2587"]
[TimeControl "180+1"]
[EndTime "10:08:43 PDT"]
[Termination "Game drawn by agreement"]

1. b3 {[%clk 0:02:56.2]} 1... Nf6 {[%clk 0:02:58.9]} 2. Bb2 {[%clk 0:02:56.5]}
2... g6 {[%clk 0:02:59]} 3. e4 {[%clk 0:02:56.8]} 3... Bg7 {[%clk 0:02:58.3]} 4.
d3 {[%clk 0:02:57]} 4... O-O {[%clk 0:02:57.9]} 5. f4 {[%clk 0:02:55.2]} 5... c5
{[%clk 0:02:52.1]} 6. Nf3 {[%clk 0:02:53.5]} 6... Nc6 {[%clk 0:02:52.1]} 7. Be2
{[%clk 0:02:52.7]} 7... d5 {[%clk 0:02:48.8]} 8. e5 {[%clk 0:02:49.4]} 8... Ne8
{[%clk 0:02:48.5]} 9. Nc3 {[%clk 0:02:49.7]} 9... Nc7 {[%clk 0:02:47.7]} 10. O-O
{[%clk 0:02:49.2]} 10... b6 {[%clk 0:02:39.4]} 11. a4 {[%clk 0:02:41.9]} 11...
d4 {[%clk 0:02:36.1]} 12. Ne4 {[%clk 0:02:40.2]} 12... Nd5 {[%clk 0:02:36.4]}
13. Bc1 {[%clk 0:02:37.3]} 13... Bf5 {[%clk 0:02:33.1]} 14. Bd2 {[%clk
0:02:33.2]} 14... Qd7 {[%clk 0:02:25.1]} 15. Qe1 {[%clk 0:02:32.2]} 15... Ncb4
{[%clk 0:02:18.3]} 16. Rc1 {[%clk 0:02:28.7]} 16... Qc6 {[%clk 0:02:11.8]} 17.
Nh4 {[%clk 0:02:26.4]} 17... Bxe4 {[%clk 0:01:30.2]} 18. dxe4 {[%clk 0:02:27.3]}
18... Nc3 {[%clk 0:01:27.8]} 19. Bxc3 {[%clk 0:02:19.3]} 19... dxc3 {[%clk
0:01:28.7]} 20. Bb5 {[%clk 0:02:19.3]} 20... Qb7 {[%clk 0:01:26.4]} 21. f5
{[%clk 0:02:10.5]} 21... Bxe5 {[%clk 0:01:25.3]} 22. Bc4 {[%clk 0:02:06.2]}
22... Kg7 {[%clk 0:01:22.1]} 23. Nf3 {[%clk 0:01:59.7]} 23... Qc7 {[%clk
0:01:18.8]} 24. Qh4 {[%clk 0:01:57.9]} 24... Bf6 {[%clk 0:01:12.6]} 25. Qg4
{[%clk 0:01:55.5]} 25... Rad8 {[%clk 0:01:09.2]} 26. Rfe1 {[%clk 0:01:44.7]}
26... Be5 {[%clk 0:01:05.5]} 27. Qh4 {[%clk 0:01:27.4]} 27... Bf4 {[%clk
0:01:01.4]} 28. e5 {[%clk 0:01:20.8]} 28... f6 {[%clk 0:00:37.6]} 29. Qxf4
{[%clk 0:01:20.2]} 29... Rd7 {[%clk 0:00:17.8]} 30. exf6+ {[%clk 0:01:18.3]}
30... exf6 {[%clk 0:00:17]} 31. Qxc7 {[%clk 0:01:18.4]} 31... Rxc7 {[%clk
0:00:17.9]} 32. fxg6 {[%clk 0:01:15.3]} 32... hxg6 {[%clk 0:00:18.8]} 33. Re6
{[%clk 0:01:14.8]} 33... Rd7 {[%clk 0:00:18.3]} 34. g4 {[%clk 0:01:04.7]} 34...
Rfd8 {[%clk 0:00:18.3]} 35. g5 {[%clk 0:01:01.6]} 35... fxg5 {[%clk 0:00:17.9]}
36. Ne5 {[%clk 0:00:54.3]} 36... Rd1+ {[%clk 0:00:16.5]} 37. Rxd1 {[%clk
0:00:54.6]} 37... Rxd1+ {[%clk 0:00:16.3]} 38. Kf2 {[%clk 0:00:55.1]} 38... Nxc2
{[%clk 0:00:16.8]} 39. Rxg6+ {[%clk 0:00:54.1]} 39... Kh8 {[%clk 0:00:13.6]} 40.
Bd3 {[%clk 0:00:34.6]} 40... Rd2+ {[%clk 0:00:12.4]} 41. Kg3 {[%clk 0:00:33]}
41... Nd4 {[%clk 0:00:12.3]} 42. Nf7+ {[%clk 0:00:32.2]} 42... Kh7 {[%clk
0:00:12.3]} 43. Rh6+ {[%clk 0:00:27.7]} 43... Kg7 {[%clk 0:00:11.3]} 44. Rh7+
{[%clk 0:00:28.4]} 44... Kf8 {[%clk 0:00:10.7]} 45. Ne5 {[%clk 0:00:27]} 45...
c2 {[%clk 0:00:07.9]} 46. Bxc2 {[%clk 0:00:27.2]} 46... Rxc2 {[%clk 0:00:08.2]}
47. Rxa7 {[%clk 0:00:27.6]} 47... Rc3+ {[%clk 0:00:05.9]} 48. Kg4 {[%clk
0:00:27.6]} 48... Rxb3 {[%clk 0:00:06.2]} 49. Kxg5 {[%clk 0:00:28.2]} 49... Nf3+
{[%clk 0:00:05.5]} 50. Nxf3 {[%clk 0:00:27.3]} 50... Rxf3 {[%clk 0:00:06.4]} 51.
Rb7 {[%clk 0:00:28]} 51... Rb3 {[%clk 0:00:05.6]} 52. h4 {[%clk 0:00:27.8]}
52... c4 {[%clk 0:00:04.3]} 53. h5 {[%clk 0:00:27.6]} 53... c3 {[%clk
0:00:04.7]} 54. Rc7 {[%clk 0:00:27.9]} 54... b5 {[%clk 0:00:02.1]} 55. a5 {[%clk
0:00:27.6]} 55... b4 {[%clk 0:00:02.4]} 56. a6 {[%clk 0:00:27.9]} 56... Ra3
{[%clk 0:00:03.3]} 57. a7 {[%clk 0:00:28]} 57... c2 {[%clk 0:00:03.3]} 58. Rxc2
{[%clk 0:00:25.3]} 58... Rxa7 {[%clk 0:00:03.6]} 59. Rc8+ {[%clk 0:00:26.2]}
59... Kg7 {[%clk 0:00:03.7]} 60. Rb8 {[%clk 0:00:26.1]} 60... Kf7 {[%clk
0:00:04.6]} 61. Rxb4 {[%clk 0:00:25.8]} 61... Ra5+ {[%clk 0:00:04.8]} 62. Kg4
{[%clk 0:00:26.3]} 62... Kg8 {[%clk 0:00:04.5]} 63. Rb7 {[%clk 0:00:26.2]} 63...
Ra8 {[%clk 0:00:04.7]} 64. Kg5 {[%clk 0:00:26]} 64... Kh8 {[%clk 0:00:05.6]} 65.
Kg6 {[%clk 0:00:26.1]} 65... Rc8 {[%clk 0:00:06]} 66. h6 {[%clk 0:00:26.2]}
66... Ra8 {[%clk 0:00:06.3]} 67. Rh7+ {[%clk 0:00:25.3]} 67... Kg8 {[%clk
0:00:06.6]} 68. Rg7+ {[%clk 0:00:25.8]} 68... Kh8 {[%clk 0:00:06.9]} 69. Rf7
{[%clk 0:00:26.3]} 69... Rb8 {[%clk 0:00:05.9]} 70. Rf6 {[%clk 0:00:24.7]} 70...
Ra8 {[%clk 0:00:06]} 71. h7 {[%clk 0:00:24.1]} 71... Rb8 {[%clk 0:00:05.7]} 72.
Kh6 {[%clk 0:00:22]} 1/2-1/2

[Event "*** Titled Tuesday Blitz"]
[Site "Chess.com"]
[Date "2020.04.14"]
[Round "1"]
[White "VladimirBelous"]
[Black "Perimir"]
[Result "1-0"]
[WhiteElo "2815"]
[BlackElo "2430"]
[TimeControl "180+1"]
[EndTime "10:08:45 PDT"]
[Termination "VladimirBelous won by resignation"]

1. c4 {[%clk 0:03:00.9]} 1... e5 {[%clk 0:02:54]} 2. g3 {[%clk 0:03:00.2]} 2...
Nc6 {[%clk 0:02:51.8]} 3. Bg2 {[%clk 0:03:00.7]} 3... g6 {[%clk 0:02:52]} 4. Nf3
{[%clk 0:03:00.8]} 4... Bg7 {[%clk 0:02:52]} 5. O-O {[%clk 0:03:01.4]} 5... f5
{[%clk 0:02:51.9]} 6. e3 {[%clk 0:02:54.4]} 6... Nf6 {[%clk 0:02:49.3]} 7. d4
{[%clk 0:02:54.9]} 7... d6 {[%clk 0:02:49.4]} 8. Nc3 {[%clk 0:02:53.5]} 8... O-O
{[%clk 0:02:49.1]} 9. b3 {[%clk 0:02:51.5]} 9... e4 {[%clk 0:02:41]} 10. Ne1
{[%clk 0:02:51.1]} 10... g5 {[%clk 0:02:40.1]} 11. f3 {[%clk 0:02:49.1]} 11...
exf3 {[%clk 0:02:36.3]} 12. Nxf3 {[%clk 0:02:48.7]} 12... h6 {[%clk 0:02:35.6]}
13. Bd2 {[%clk 0:02:43.8]} 13... Qe7 {[%clk 0:02:28.8]} 14. d5 {[%clk
0:02:41.5]} 14... Ne5 {[%clk 0:02:23.1]} 15. Nd4 {[%clk 0:02:41.7]} 15... Nh7
{[%clk 0:02:08.3]} 16. Qc2 {[%clk 0:02:39.6]} 16... Bd7 {[%clk 0:01:53.6]} 17.
Nxf5 {[%clk 0:02:35.3]} 17... Bxf5 {[%clk 0:01:53.3]} 18. Rxf5 {[%clk
0:02:36.2]} 18... Rxf5 {[%clk 0:01:53.4]} 19. Qxf5 {[%clk 0:02:37.1]} 19... Rf8
{[%clk 0:01:53.7]} 20. Qe6+ {[%clk 0:02:30.6]} 20... Qxe6 {[%clk 0:01:53.5]} 21.
dxe6 {[%clk 0:02:31.5]} 21... c6 {[%clk 0:01:53.9]} 22. Rd1 {[%clk 0:02:28.2]}
22... Re8 {[%clk 0:01:50.3]} 23. Ne4 {[%clk 0:02:10.5]} 23... Rxe6 {[%clk
0:01:48]} 24. Bb4 {[%clk 0:01:55.4]} 24... Nf7 {[%clk 0:01:32.8]} 25. Nxd6
{[%clk 0:01:48.8]} 25... Nxd6 {[%clk 0:01:29.9]} 26. Rxd6 {[%clk 0:01:42.4]}
26... Rxe3 {[%clk 0:01:26.9]} 27. Rd7 {[%clk 0:01:39.9]} 27... Re2 {[%clk
0:01:16.2]} 28. Kf1 {[%clk 0:01:06.3]} 28... Rxa2 {[%clk 0:01:12.4]} 29. Rxb7
{[%clk 0:01:06.8]} 29... Ra1+ {[%clk 0:01:02.7]} 30. Ke2 {[%clk 0:01:05.7]}
30... Ra2+ {[%clk 0:01:01.7]} 31. Bd2 {[%clk 0:01:05.8]} 31... Bc3 {[%clk
0:00:56.7]} 32. Rd7 {[%clk 0:01:05.6]} 32... Nf6 {[%clk 0:00:56]} 33. Rd8+
{[%clk 0:01:04.5]} 33... Kf7 {[%clk 0:00:54.6]} 34. Bxc6 {[%clk 0:01:04.2]}
34... Rb2 {[%clk 0:00:35.5]} 35. Rd3 {[%clk 0:00:55.4]} 35... Bxd2 {[%clk
0:00:34.2]} 36. Rxd2 {[%clk 0:00:56.3]} 36... Rxb3 {[%clk 0:00:34.6]} 37. Ra2
{[%clk 0:00:56.9]} 37... Ke6 {[%clk 0:00:24.3]} 38. Kd2 {[%clk 0:00:49.1]} 38...
a6 {[%clk 0:00:20.4]} 39. Kc2 {[%clk 0:00:23.1]} 39... Rb6 {[%clk 0:00:20.1]}
40. Bf3 {[%clk 0:00:23.6]} 40... Nd7 {[%clk 0:00:19]} 41. Ra5 {[%clk 0:00:20.5]}
41... Kd6 {[%clk 0:00:18.7]} 42. Rd5+ {[%clk 0:00:18.7]} 42... Kc6 {[%clk
0:00:19.2]} 43. Rxg5+ {[%clk 0:00:17.7]} 43... Kc7 {[%clk 0:00:20.1]} 44. Rd5
{[%clk 0:00:17.3]} 44... Rf6 {[%clk 0:00:18.7]} 45. Rd3 {[%clk 0:00:16.5]} 45...
Nc5 {[%clk 0:00:18.5]} 46. Re3 {[%clk 0:00:17]} 46... a5 {[%clk 0:00:18]} 47.
Kc3 {[%clk 0:00:17.5]} 47... a4 {[%clk 0:00:17.3]} 48. Bd5 {[%clk 0:00:17.9]}
48... Kd6 {[%clk 0:00:17.2]} 49. Kb4 {[%clk 0:00:18.3]} 49... Rf1 {[%clk
0:00:17.2]} 50. Rf3 {[%clk 0:00:18.4]} 50... Rb1+ {[%clk 0:00:16.8]} 51. Ka3
{[%clk 0:00:18.8]} 51... Rb3+ {[%clk 0:00:16.9]} 52. Rxb3 {[%clk 0:00:18.1]}
52... axb3 {[%clk 0:00:17.8]} 53. Kb2 {[%clk 0:00:11.7]} 53... Ke5 {[%clk
0:00:18.1]} 54. Kc3 {[%clk 0:00:12.4]} 54... Kd6 {[%clk 0:00:14.3]} 55. Bf3
{[%clk 0:00:12.9]} 55... Ke5 {[%clk 0:00:13.6]} 56. Bd1 {[%clk 0:00:13.4]} 56...
Ke4 {[%clk 0:00:13]} 57. Bxb3 {[%clk 0:00:12.6]} 57... Kf3 {[%clk 0:00:13.7]}
58. Bc2 {[%clk 0:00:11.4]} 58... Kg2 {[%clk 0:00:13.6]} 59. Kd4 {[%clk
0:00:11.2]} 59... Nd7 {[%clk 0:00:12.8]} 60. Bf5 {[%clk 0:00:10.4]} 60... Nb8
{[%clk 0:00:11.3]} 61. Kc5 {[%clk 0:00:06.5]} 61... Kxh2 {[%clk 0:00:11.3]} 62.
g4 {[%clk 0:00:06.5]} 62... Kg3 {[%clk 0:00:11]} 63. Kb6 {[%clk 0:00:07]} 63...
Kf4 {[%clk 0:00:09.9]} 64. Kb7 {[%clk 0:00:07.4]} 64... h5 {[%clk 0:00:10.3]}
65. gxh5 {[%clk 0:00:07.8]} 65... Kxf5 {[%clk 0:00:08.7]} 66. Kxb8 {[%clk
0:00:08.2]} 1-0